Cogmind - Beta 10 @@@ ROGUE MODE // 2020.09.14 @ 17:00:21 Player: Terminus Result: Self-destructed Performance ------------- Evolutions (6) 3000 Regions Visited (27) 5400 Robots Destroyed (313) 1565 Value Destroyed (10394) 10394 Prototype IDs (40) 800 Alien Tech Used (0) 0 Bonus (3538) 3538 TOTAL SCORE: 24697 Bonus ------- High Alert Combat Kills 425 Follower Combat Kills 1274 Met Data Miner 300 Met Imprinter 300 Destroyed Z-Imprinter 1000 Met Warlord at Base 500 MAIN.C Attacked Warlord 500 Warlord Defense Kill 94 Friendly Fire -855 Cogmind --------- Core Integrity 699/1150 Matter 300/300 Energy 47/100 System Corruption 0% Temperature Cool (0) Movement Core (300) Ox5 Location -4/Factory Parts ------- > --- POWER (2) -------- (None) > --- PROPULSION (4) --- (None) > --- UTILITY (11) ----- Large Storage Unit Experimental Signal Interpreter Advanced Armor Integrity Analyzer Quantum Router > --- WEAPON (2) ------- CR-A16's Behemoth Slayer > --- INVENTORY (10) --- YI-UF0's Bottomless Matter Pit (1490) Experimental Phase Shifter Zionite Weapon Casing Improved Medium Armor Plating Hacking Suite System Shield System Restoration Module Improved EM Pulse Cannon Helical Railgun Improved Plasma Cutter Peak State ------------ > --- POWER ------------ Neutrino Core Zionite Light DM Reactor > --- PROPULSION ------- Combat Gravmag System Combat Gravmag System Combat Gravmag System Combat Gravmag System > --- UTILITY ---------- Large Storage Unit Large Storage Unit High-capacity Storage Unit Experimental Signal Interpreter Advanced Targeting Computer Advanced Targeting Computer Experimental Core Analyzer Advanced Armor Integrity Analyzer Advanced Hacking Suite System Mapper Quantum Router > --- WEAPON ----------- Helical Railgun Helical Railgun > --- INVENTORY -------- Cooled Antigrav System YI-UF0's Bottomless Matter Pit Improved Target Analyzer Weapon Cycler Experimental Phase Shifter Zionite Weapon Casing Zionite Weapon Casing Improved Medium Armor Plating Improved Medium Armor Plating Improved Medium Armor Plating Hacking Suite System Shield System Restoration Module Improved EM Pulse Cannon Proton Cannon Improved Proton Missile Launcher Improved Plasma Cutter CR-A16's Behemoth Slayer [Rating: 122] Favorites ----------- Power Light Fission Core Engine Ion Engine Power Core Light Fission Core Reactor Light Antimatter Reactor Propulsion Combat Gravmag System Leg Aluminum Leg Hover Unit Combat Gravmag System Utility Large Storage Unit Device Long-range Sensor Array Storage Large Storage Unit Processor Advanced Targeting Computer Hackware Hacking Suite Protection Hardened Light Armor Plating Weapon Heavy EM Shotgun Energy Gun Heavy EM Shotgun Energy Cannon EM Pulse Cannon Ballistic Gun Hypervelocity Railgun Launcher Mini Grenade Launcher Special Weapon Remote Datajack Slashing Weapon Scythe Piercing Weapon CR-A16's Behemoth Slayer Build | -11 -10 -10 -9 -9 -9 -8 -8 -8 -7 -7 -7 -7 -7 -6 -6 -6 -6 -6 -6 -6 -5 -5 -5 -5 -5 -4 -4 ------- Run | Scr Mat Min Mat Min Exi Min Mat Sto Fac Low Low Zio Dee Pro Fac Was Fac Low Low Dat Pro Fac Upp Upp War Pro Fac Slots Evolved 12 | . . . 2 . . . 2 . 2 . . . . . 2 . . . . . . 2 . . . . 2 Power 1 | . . . . . . . . . 1 . . . . . . . . . . . . . . . . . . Propulsion 2 | . . . . . . . 1 . . . . . . . 1 . . . . . . . . . . . . Utility 9 | . . . 2 . . . 1 . 1 . . . . . 1 . . . . . . 2 . . . . 2 Weapon . | . . . . . . . . . . . . . . . . . . . . . . . . . . . . Parts Attached 286 | 6 20 7 19 4 1 . 28 18 28 2 4 8 11 2 33 1 12 5 . 3 1 27 4 6 10 12 14 Power 31 | 1 1 1 3 1 . . 3 1 2 . . . 2 . 5 . 2 . . . . 4 1 . . 3 1 Engine 15 | 1 1 1 2 1 . . 2 1 2 . . . 1 . 2 . . . . . . . . . . . 1 Core 12 | . . . 1 . . . 1 . . . . . . . 3 . 2 . . . . 4 . . . 1 . Reactor 4 | . . . . . . . . . . . . . 1 . . . . . . . . . 1 . . 2 . Propulsion 27 | 2 4 2 . . . . 3 2 2 . . . . . 3 . 2 . . . . 1 . 2 2 1 1 Treads . | . . . . . . . . . . . . . . . . . . . . . . . . . . . . Leg 6 | 2 4 . . . . . . . . . . . . . . . . . . . . . . . . . . Wheel . | . . . . . . . . . . . . . . . . . . . . . . . . . . . . Hover 21 | . . 2 . . . . 3 2 2 . . . . . 3 . 2 . . . . 1 . 2 2 1 1 Flight . | . . . . . . . . . . . . . . . . . . . . . . . . . . . . Utility 76 | 1 4 1 8 2 1 . 6 2 7 . . 3 5 . 14 . 4 2 . . . 5 . . 3 2 6 Device 33 | . 2 1 1 1 . . . 1 4 . . 2 3 . 9 . 2 2 . . . 1 . . 3 . 1 Storage 16 | 1 2 . 2 1 1 . 1 . 2 . . . . . 3 . 2 . . . . 1 . . . . . Processor 9 | . . . 2 . . . 1 . 1 . . . . . . . . . . . . 1 . . . 2 2 Hackware 6 | . . . . . . . 1 . . . . 1 . . 1 . . . . . . 2 . . . . 1 Protection 12 | . . . 3 . . . 3 1 . . . . 2 . 1 . . . . . . . . . . . 2 Artifact . | . . . . . . . . . . . . . . . . . . . . . . . . . . . . Weapon 152 | 2 11 3 8 1 . . 16 13 17 2 4 5 4 2 11 1 4 3 . 3 1 17 3 4 5 6 6 Energy Gun 38 | 2 5 1 1 . . . 7 8 7 . 1 1 . . 2 . . . . . . . . . . . 3 Energy Cannon 27 | . 4 . 5 . . . 4 . 3 . . 2 2 . 5 . . 1 . . . . . . 1 . . Ballistic Gun 21 | . . . . . . . . 2 . . . . . . . . 1 . . . 1 8 1 1 2 4 1 Ballistic Cannon . | . . . . . . . . . . . . . . . . . . . . . . . . . . . . Launcher 39 | . 2 2 2 1 . . 5 1 3 1 2 1 1 2 1 1 1 1 . 2 . 4 1 2 . 2 1 Special Weapon 2 | . . . . . . . . . . . . . . . . . . . . 1 . 1 . . . . . Impact Weapon . | . . . . . . . . . . . . . . . . . . . . . . . . . . . . Slashing Weapon 8 | . . . . . . . . 2 4 1 1 . . . . . . . . . . . . . . . . Piercing Weapon 17 | . . . . . . . . . . . . 1 1 . 3 . 2 1 . . . 4 1 1 2 . 1 Special Melee Weapon . | . . . . . . . . . . . . . . . . . . . . . . . . . . . . Unidentified Prototypes 27 | . . . 1 1 . . 5 7 1 . . 1 3 . . . . 1 . . . 2 . . 3 1 1 Parts Lost 51 | . 5 2 6 . . . 3 1 1 . . . . . 3 . . 1 . . . 3 . 2 2 5 17 Power 12 | . 1 1 2 . . . . . . . . . . . 1 . . . . . . 1 . . . 3 3 Propulsion 7 | . . . . . . . 1 . . . . . . . . . . . . . . . . . . 1 5 Utility 11 | . . 1 1 . . . 1 1 . . . . . . . . . . . . . 1 . . 1 1 4 Weapon 21 | . 4 . 3 . . . 1 . 1 . . . . . 2 . . 1 . . . 1 . 2 1 . 5 Highest Loss Streak 16 | . 3 1 3 . . . 3 1 1 . . . . . 1 . . 1 . . . 1 . 1 2 3 16 Average Slot Usage (%) 98 | . 97 99 96 100 100 100 95 99 99 100 100 99 100 100 99 100 100 100 100 95 100 99 100 99 99 97 87 Engine 6 | . 13 13 6 11 11 11 5 9 14 15 15 15 15 15 5 6 . . . . . . . . . . . Core 4 | . . . 3 . . . 3 . . . . . . . 6 6 12 13 13 13 13 10 8 5 5 4 2 Leg 2 | . 28 8 . . . . . . . . . . . . . . . . . . . . . . . . . Hover 21 | . . 19 22 22 22 22 23 26 22 23 23 23 23 23 26 26 26 26 26 26 26 22 23 23 23 22 19 Device 9 | . 12 13 11 11 11 11 9 8 7 7 7 6 5 7 5 6 6 11 13 13 13 10 11 11 10 1 2 Storage 15 | . 14 14 11 11 11 11 11 9 10 15 15 15 15 15 18 20 20 20 20 20 20 17 17 17 17 17 13 Processor 10 | . . . 10 11 11 11 7 9 15 15 15 15 15 15 13 13 13 13 13 13 13 11 11 11 11 19 18 Hackware 5 | . . . . . . . 6 9 7 7 7 7 7 7 6 6 6 1 . . . 11 11 11 11 11 14 Protection 2 | . . . 10 11 11 11 9 9 3 . . . 1 . 1 . . . . . . . . . . . 1 Energy Gun 3 | . 8 15 . . . . 11 13 11 7 1 3 . . 2 . . . . . . . . . . . 3 Energy Cannon 4 | . 16 . 15 11 11 11 5 . . . . 1 11 7 5 7 1 2 . . . . . . . . . Ballistic Gun 1 | . . . . . . . . . . . . . . . . . 4 1 . . 5 5 10 2 2 9 3 Launcher 3 | . 2 12 4 10 11 11 1 . . . 6 7 2 6 2 4 . 2 6 2 . . . 3 5 1 . Piercing Weapon 1 | . . . . . . . . . . . . . 1 . 2 . 5 4 6 6 6 4 . 4 2 . . Naked Turns . | . . . . . . . . . . . . . . . . . . . . . . . . . . . . Heaviest Build 100 | 12 44 41 45 40 40 40 61 42 61 61 59 65 66 64 80 80 81 82 76 76 74 89 96 97 97 100 100 Greatest Support 100 | 20 20 44 44 44 44 44 66 55 66 66 66 66 66 66 94 94 100 100 100 100 100 100 100 100 100 100 100 Greatest Overweight (x) 4 | 3 4 2 1 . . . 1 1 1 . . . . . 1 . . . . . . . . 1 1 1 1 Average Overweight (x) . | . 1 . . . . . . . . . . . . . . . . . . . . . . . . . . Largest Inventory Capacity 24 | 6 12 12 12 10 10 10 16 10 16 16 16 16 16 16 22 22 22 22 22 22 22 24 24 24 24 24 24 Average Capacity 15 | 5 10 12 9 10 10 10 11 10 12 16 16 16 16 16 20 22 22 22 22 22 22 22 24 24 24 24 22 Most Carried 24 | 1 12 12 12 10 10 10 16 10 16 16 16 16 16 16 19 18 22 22 22 22 22 23 24 24 24 24 20 Average Carried 13 | . 8 11 9 8 10 10 11 10 12 16 15 15 15 16 17 18 21 20 22 19 20 22 23 22 22 22 17 Final Capacity 24 | 6 12 12 10 10 10 10 10 10 16 16 16 16 16 16 22 22 22 22 22 22 22 24 24 24 24 24 10 Final Carried 24 | 1 12 12 8 10 10 10 10 10 16 16 16 16 16 16 18 18 22 22 22 20 22 23 24 22 24 20 10 Class Distribution -------------------- 47% | Mutant 20% | Hacker-Mutant 14% | Scavenger-Mutant 12% | Hauler-Mutant 4% | Machinist-Mutant Dominant Class ---------------- Mutant | -10/Materials Scavenger-Mutant | -10/Mines Scavenger-Mutant | -9/Materials Scavenger-Mutant | -9/Mines Scavenger-Mutant | -9/Exiles Scavenger-Mutant | -8/Mines Mutant | -8/Materials Mutant | -8/Storage Mutant | -7/Factory Mutant | -7/Lower Caves Mutant | -7/Lower Caves Mutant | -7/Zion Mutant | -7/Deep Caves Mutant | -6/Proximity Caves Hauler-Mutant | -6/Factory Hauler-Mutant | -6/Waste Machinist-Mutant | -6/Factory Hauler-Mutant | -6/Lower Caves Hauler-Mutant | -6/Lower Caves Hauler-Mutant | -6/Data Miner Hauler-Mutant | -5/Proximity Caves Hacker-Mutant | -5/Factory Hacker-Mutant | -5/Upper Caves Hacker-Mutant | -5/Upper Caves Hacker-Mutant | -5/Warlord Hacker-Mutant | -4/Proximity Caves Hacker-Mutant | -4/Factory Resources | -11 -10 -10 -9 -9 -9 -8 -8 -8 -7 -7 -7 -7 -7 -6 -6 -6 -6 -6 -6 -6 -5 -5 -5 -5 -5 -4 -4 ----------- Run | Scr Mat Min Mat Min Exi Min Mat Sto Fac Low Low Zio Dee Pro Fac Was Fac Low Low Dat Pro Fac Upp Upp War Pro Fac Matter Collected 7132 | 260 242 208 245 1590 . 50 340 215 350 45 81 48 211 163 285 . 624 85 13 169 78 460 433 275 281 224 157 Remotely . | . . . . . . . . . . . . . . . . . . . . . . . . . . . . Salvage Created 14159 | 110 549 159 1005 366 . 87 1084 929 957 174 259 . 108 954 821 551 839 158 . 84 59 2609 552 1051 75 247 372 Parts 666 | 8 30 15 68 13 . 6 50 56 52 7 15 . 11 28 48 1 45 9 . 4 2 121 20 33 3 7 14 Haulers Intercepted 19 | . 2 . 1 . . . 4 3 2 . . . . . 1 . 2 . . . . 3 1 . . . . Recyclers Shooed 7 | . 1 . . . . . . . 1 . . . . . . . 1 . . . . 4 . . . . . Parts Field Recycled . | . . . . . . . . . . . . . . . . . . . . . . . . . . . . Retrieved Matter . | . . . . . . . . . . . . . . . . . . . . . . . . . . . . Parts Self-Destructed 154 | . . . . . . . . . . 7 5 1 . 6 . . . 9 . . 12 . 25 7 82 . . Prevented 81 | . . . . . . . . . . 2 5 . . 26 . . . . . . . . 2 28 7 11 . Kills | -11 -10 -10 -9 -9 -9 -8 -8 -8 -7 -7 -7 -7 -7 -6 -6 -6 -6 -6 -6 -6 -5 -5 -5 -5 -5 -4 -4 ------- Run | Scr Mat Min Mat Min Exi Min Mat Sto Fac Low Low Zio Dee Pro Fac Was Fac Low Low Dat Pro Fac Upp Upp War Pro Fac Combat Hostiles Destroyed 219 | . 12 15 18 6 . 6 15 11 13 4 8 . 2 14 11 2 11 8 . 1 1 30 8 15 1 3 4 Melee 13 | . . . . . . . . . . . . . . . 1 . 3 1 . . . 7 . 1 . . . Guns 39 | . 1 2 1 . . . 4 5 1 . . . . . 2 . 5 . . . 1 9 6 . 1 . 1 Cannons 27 | . 8 . 8 . . 2 3 . 2 . . . . . 4 . . . . . . . . . . . . AOE 104 | . 3 13 8 4 . 4 5 5 7 4 7 . 2 7 3 2 3 7 . . . 12 2 6 . . . Classes Destroyed 21 | 3 4 1 3 1 . . . 2 1 . . . 1 1 . 1 . 1 . . . . . 1 1 . . Worker 16 | 1 1 2 2 . . . 1 1 2 . . . . . 1 . 2 . . . . 1 . . . . 2 Builder 9 | . . . 1 1 . . 2 1 . . . . . . 1 . 2 . . . . 1 . . . . . Tunneler 2 | 1 1 . . . . . . . . . . . . . . . . . . . . . . . . . . Hauler 19 | . 2 . 1 . . . 4 3 2 . . . . . 1 . 2 . . . . 3 1 . . . . Recycler 12 | 1 . 1 3 1 . . 1 1 . . . . . . . . . . . . . 4 . . . . . Minesweeper 1 | . . . . . . . . . . . . . . . . . . 1 . . . . . . . . . Mechanic 3 | . . . . . . . . 1 . . . . . 1 1 . . . . . . . . . . . . Operator 2 | . . . 2 . . . . . . . . . . . . . . . . . . . . . . . . Watcher 27 | . 3 . 4 . . . 5 1 3 . . . . . 4 . 1 . . . . 6 . . . . . Swarmer 57 | . 3 6 7 3 . 3 3 . . 4 4 . . 1 . . 3 4 . . . 12 4 . . . . Saboteur 1 | . . . . . . . . . . . . . . . . . . . . . . . . 1 . . . Grunt 84 | . 9 . 4 2 . 2 8 5 7 . 3 . . 7 3 . 6 2 . . 1 12 1 9 . . 3 Brawler 7 | . . . . . . . . 1 1 . . . . 1 . . . 1 . . . . 1 2 . . . Duelist 10 | . . . . 1 . 1 . . 1 . 1 . . 2 1 . . . . . . . 1 2 . . . Protector 1 | . . . . . . . . . . . . . . . . . . . . . . . . . 1 . . Sentry 26 | . . . 7 . . . 4 5 2 . . . . 1 1 . 2 1 . . . 1 1 1 . . . Hunter 11 | . . . . . . . . . . . . . . 2 3 . . . . . . 2 . . . 3 1 Programmer 8 | . . . . . . . . . 2 . . . . . 3 . . . . . . 3 . . . . . Compactor 2 | . . . . . . . . . . . . . . . . 2 . . . . . . . . . . . Enhanced Grunt 1 | . . . . . . . . . . . . . . . . . . . . 1 . . . . . . . Z-Light 1 | . . . . . . . . . . . . . 1 . . . . . . . . . . . . . . Packrat 1 | . . . . . . . . . . 1 . . . . . . . . . . . . . . . . . Assembled 9 | . . 9 . . . . . . . . . . . . . . . . . . . . . . . . . Best Kill Streak 11 | 1 4 5 5 4 . 3 5 11 6 4 8 . 1 9 4 2 7 4 . 2 1 7 4 11 1 2 2 Combat Bots Only 11 | . 4 3 4 3 . 3 4 8 5 4 8 . 1 8 4 2 3 4 . 1 1 7 4 11 1 2 2 Max Kills in Single Turn 5 | 1 2 3 5 2 . 2 3 3 2 2 2 . 1 2 1 2 4 4 . 1 1 4 2 2 1 1 1 Gunslinging . | . . . . . . . . . . . . . . . . . . . . . . . . . . . . Exploded 4 | . 1 2 4 2 . 2 2 3 2 2 2 . 1 2 1 2 2 4 . . . 4 2 1 . . . Melee 1 | . . . . . . . . . . . . . . . 1 . 1 1 . . . 1 . 1 . . . Uniques/NPCs Destroyed 3 | . . . . 1 . . . . . . . . 1 . . . . . . 1 . . . . . . . YI-UF0 (-9/Mines) Z-Imprinter (-7/Deep Caves) Data Miner (-6/Data Miner) Combat | -11 -10 -10 -9 -9 -9 -8 -8 -8 -7 -7 -7 -7 -7 -6 -6 -6 -6 -6 -6 -6 -5 -5 -5 -5 -5 -4 -4 -------- Run | Scr Mat Min Mat Min Exi Min Mat Sto Fac Low Low Zio Dee Pro Fac Was Fac Low Low Dat Pro Fac Upp Upp War Pro Fac Damage Taken 9074 | . 545 298 646 41 . 50 395 266 287 49 . . 138 148 743 . 355 78 . 50 125 911 337 523 169 904 2016 Core 1788 | . 67 114 131 . . . 48 33 45 . . . 80 58 121 . 93 . . 50 22 170 18 122 . 165 451 Absorbed by Shields . | . . . . . . . . . . . . . . . . . . . . . . . . . . . . Core Remaining (%) 67 | 100 . 27 . . . 67 . 85 . . . . . 73 . . . . . . 66 . . . . 52 . Volleys Fired 600 | 8 47 19 54 20 . 7 54 20 39 5 7 3 12 24 36 11 31 10 . 4 14 52 24 38 19 18 24 Largest 2 | 2 2 2 2 1 . 1 2 2 2 1 1 1 1 1 2 1 1 1 . 1 1 2 2 2 1 2 2 Hottest 126 | 90 120 80 126 63 . 63 126 100 100 36 39 90 69 63 119 39 43 43 . 36 28 80 80 80 69 81 120 Shots Fired 815 | 16 85 24 69 20 . 7 89 34 49 5 7 3 12 24 58 11 32 11 . 5 15 65 43 48 19 28 36 Gun 401 | 16 10 10 4 . . . 53 28 25 . . . . . 22 . 29 1 . . 14 54 39 25 18 19 34 Cannon 230 | . 70 . 58 15 . 3 26 . 12 . . 3 4 1 36 . . 1 . . . . . . 1 . . Launcher 181 | . 5 14 7 5 . 4 10 6 12 5 7 . 8 23 . 11 3 9 . 3 1 10 4 23 . 9 2 Special 3 | . . . . . . . . . . . . . . . . . . . . 2 . 1 . . . . . Kinetic 211 | . . . . . . . . . . . . . . . . . 29 1 . . 14 54 39 25 18 19 12 Thermal 121 | 16 80 . 4 . . . 3 . 5 . . 3 . . 10 . . . . . . . . . . . . Explosive 73 | . 5 14 7 5 . 4 7 . . . 2 . 3 2 . 11 3 9 . . . 1 . . . . . Electromagnetic 407 | . . 10 58 15 . 3 79 34 44 5 5 . 9 22 48 . . 1 . 3 1 9 4 23 1 9 24 Robot Hit Streak 33 | 3 10 5 15 29 . 32 33 24 17 . 8 . 10 8 9 2 8 5 . 9 6 17 7 7 6 3 10 Robot Miss Streak 6 | 1 4 3 2 . . . 6 2 3 . . . 1 . 3 1 1 . . . 1 3 3 2 1 1 2 Penetration Max 2 | . . . . . . . . . . . . . . . . . 2 . . . . 2 1 1 . . 1 Secondary Targets 1 | . . . . . . . . . . . . . . . . . . . . . . . 1 . . . . Max Gunslinging Chain 1 | . . . . . . . . . . . . . . . . . . . . . . . 1 . . . . Shots Hit Robots 517 | 6 50 11 47 14 . 3 59 24 34 . 2 . 3 7 40 6 19 6 . 5 10 74 29 23 9 7 29 Core Hits 483 | 4 24 22 36 11 . 11 43 29 27 6 11 . 9 23 32 4 27 21 . 2 4 64 17 34 4 6 12 Critical Hits 54 | . . . 1 . . . 1 4 1 . . . . . . . 12 . . . . 15 11 5 3 . 1 Critical Kills 25 | . . . . . . . 1 3 . . . . . . . . 5 . . . . 9 5 . 1 . 1 Critical Parts Destroyed 25 | . . . . . . . . . 1 . . . . . . . 7 . . . . 4 6 5 2 . . Melee Attacks 143 | . . . . . . . . 7 3 . . . 1 . 19 . 24 9 . 1 . 67 2 6 4 . . Impact . | . . . . . . . . . . . . . . . . . . . . . . . . . . . . Slashing 10 | . . . . . . . . 7 3 . . . . . . . . . . . . . . . . . . Piercing 133 | . . . . . . . . . . . . . 1 . 19 . 24 9 . 1 . 67 2 6 4 . . Sneak Attacks 19 | . . . . . . . . 1 . . . . . . 2 . 3 1 . 1 . 11 . . . . . Combat Hostiles 1 | . . . . . . . . . . . . . . . . . 1 . . . . . . . . . . Follow-up Attacks . | . . . . . . . . . . . . . . . . . . . . . . . . . . . . Damage Inflicted 30208 | 86 1091 969 1907 686 . 420 2154 1479 2027 314 566 . 690 1782 2638 1466 1539 1093 . 195 184 5094 477 1788 116 458 989 Guns 4596 | 86 85 88 48 . . . 801 522 434 . . . . . 154 . 221 . . . 177 640 246 137 86 82 789 Cannons 4023 | . 772 . 1102 331 . 66 508 . 286 . . . 72 23 833 . . . . . . . . . 30 . . Explosions 17225 | . 234 881 757 355 . 354 845 856 1307 314 566 . 618 1759 1385 1466 778 885 . 31 7 1369 231 1651 . 376 200 Melee 4364 | . . . . . . . . 101 . . . . . . 266 . 540 208 . 164 . 3085 . . . . . Ramming . | . . . . . . . . . . . . . . . . . . . . . . . . . . . . Kinetic 1923 | . . . . . . . . . . . . . . . . . 221 . . . 177 640 246 137 86 82 334 Thermal 3432 | 86 857 . 293 88 . . 141 301 737 53 . . . . 596 . . . . . . 237 . . . . 43 Explosive 7819 | . 234 881 468 267 . 354 574 . . . 255 . 258 119 1020 1466 778 885 . . . 260 . . . . . Electromagnetic 12670 | . . 88 1146 331 . 66 1439 1077 1290 261 311 . 432 1663 756 . . . . 31 7 872 231 1651 30 376 612 Impact . | . . . . . . . . . . . . . . . . . . . . . . . . . . . . Slashing 101 | . . . . . . . . 101 . . . . . . . . . . . . . . . . . . . Piercing 4263 | . . . . . . . . . . . . . . . 266 . 540 208 . 164 . 3085 . . . . . Highest Corruption 5 | . . . . . . . . 1 1 1 1 1 . . 5 5 5 5 5 5 5 1 2 2 4 . . Average Corruption 2 | . . . . . . . . 1 1 1 1 1 . . 2 5 5 5 5 5 5 1 1 2 2 . . Corruption Purged . | . . . . . . . . . . . . . . . . . . . . . . . . . . . . Effects 98 | . . . . . . . . 1 4 2 1 . . . 7 2 39 10 3 4 8 6 4 7 . . . Message Errors 22 | . . . . . . . . 1 1 2 . . . . 1 1 7 1 1 1 1 3 . 2 . . . Matter Fused 22 | . . . . . . . . . . . . . . . . 1 15 4 . . 2 . . . . . . Heat Flow Errors 15 | . . . . . . . . . . . . . . . 3 . 6 2 . . 2 . 1 1 . . . Energy Discharges 13 | . . . . . . . . . 1 . 1 . . . 1 . 2 1 1 1 1 . 1 3 . . . Parts Rejected 1 | . . . . . . . . . . . . . . . . . 1 . . . . . . . . . . Data Loss (minor) 8 | . . . . . . . . . . . . . . . . . 4 1 1 . . 1 1 . . . . Data Loss (major) 2 | . . . . . . . . . . . . . . . . . 1 . . 1 . . . . . . . Misfires 4 | . . . . . . . . . . . . . . . . . 1 1 . 1 1 . . . . . . Targeting Errors 10 | . . . . . . . . . 2 . . . . . 2 . 2 . . . 1 2 . 1 . . . Weapon Failures 1 | . . . . . . . . . . . . . . . . . . . . . . . 1 . . . . Overload Shots 3 | . . . . . . . . . . . . 3 . . . . . . . . . . . . . . . Overflow Damage 1085 | . 16 38 43 34 . 3 25 86 83 24 . . 19 13 127 . 19 6 . . . 523 1 23 . . 2 Projectiles 116 | . 16 . 31 17 . . 5 . . . . . 4 . 43 . . . . . . . . . . . . Explosions 453 | . . 38 12 17 . 3 20 86 83 24 . . 15 13 84 . 19 6 . . . 7 1 23 . . 2 Melee 516 | . . . . . . . . . . . . . . . . . . . . . . 516 . . . . . Knockbacks . | . . . . . . . . . . . . . . . . . . . . . . . . . . . . Impact . | . . . . . . . . . . . . . . . . . . . . . . . . . . . . Kinetic . | . . . . . . . . . . . . . . . . . . . . . . . . . . . . Secondary . | . . . . . . . . . . . . . . . . . . . . . . . . . . . . Self-Inflicted Damage 458 | . 46 92 67 . . 34 64 . 19 . . . 23 . . . . . . . 19 68 26 . . . . Shots 18 | . 2 4 2 . . 1 2 . 1 . . . 1 . . . . . . . 1 1 3 . . . . Rammed . | . . . . . . . . . . . . . . . . . . . . . . . . . . . . Targets Rammed . | . . . . . . . . . . . . . . . . . . . . . . . . . . . . Kicked . | . . . . . . . . . . . . . . . . . . . . . . . . . . . . Crushed . | . . . . . . . . . . . . . . . . . . . . . . . . . . . . Highest Temperature 339 | 120 168 . 76 116 . . 15 69 135 . . 54 80 15 240 6 287 295 . . 104 . 254 245 . 124 339 Average Temperature 55 | 41 50 . 17 38 . . 8 13 36 . . 26 33 8 71 2 56 77 . . 55 . 126 123 . 25 152 Received Heat Transfer 1509 | . 147 . 255 12 . . 162 36 42 . . . 36 30 75 . 60 39 . 6 . 150 . 201 . 18 240 Effects 6 | . . . . . . . . . . . . . . . . . 2 . . . . . . . . . 4 Shutdowns 1 | . . . . . . . . . . . . . . . . . . . . . . . . . . . 1 Energy Bleed 1 | . . . . . . . . . . . . . . . . . . . . . . . . . . . 1 Interference 2 | . . . . . . . . . . . . . . . . . 2 . . . . . . . . . . Damage (minor) 2 | . . . . . . . . . . . . . . . . . . . . . . . . . . . 2 Siege Activations . | . . . . . . . . . . . . . . . . . . . . . . . . . . . . Robots Corrupted 38 | . . . 1 2 . . 3 1 4 . 1 . . 7 2 . . . . 1 . 2 . 8 . 3 3 Combat Hostiles 36 | . . . 1 2 . . 3 1 3 . 1 . . 7 1 . . . . 1 . 2 . 8 . 3 3 Parts Fried 79 | . . . 5 3 . . 7 7 10 . 2 . . 5 9 . . . . 2 . 6 3 10 . 3 7 Impact Corruptions . | . . . . . . . . . . . . . . . . . . . . . . . . . . . . Robots Melted . | . . . . . . . . . . . . . . . . . . . . . . . . . . . . Combat Hostiles . | . . . . . . . . . . . . . . . . . . . . . . . . . . . . Parts Melted 3 | . 1 . . . . . . . 1 . . . . . 1 . . . . . . . . . . . . Heat Transferred 4900 | 247 1887 . 498 100 . . 187 400 585 50 . . . . 596 . . . . . . 250 . . . . 100 Parts Sabotaged 2 | . . . . . . . . . . . . . . . . . . . . . . . . 2 . . . Parts Stolen . | . . . . . . . . . . . . . . . . . . . . . . . . . . . . Parts Stripped . | . . . . . . . . . . . . . . . . . . . . . . . . . . . . Power Chain Reactions 24 | . . . 4 1 . . 3 5 2 1 1 . . . 4 . . . . . . 2 . . . . 1 Missiles Intercepted . | . . . . . . . . . . . . . . . . . . . . . . . . . . . . Alert | -11 -10 -10 -9 -9 -9 -8 -8 -8 -7 -7 -7 -7 -7 -6 -6 -6 -6 -6 -6 -6 -5 -5 -5 -5 -5 -4 -4 ------- Run | Scr Mat Min Mat Min Exi Min Mat Sto Fac Low Low Zio Dee Pro Fac Was Fac Low Low Dat Pro Fac Upp Upp War Pro Fac Peak Influence 646 | 10 307 185 403 336 . 170 368 407 513 . . . . . 583 201 646 . . . . 478 . . . . 117 Initial 344 | . . 4 13 156 . . 66 143 177 . . . . . 344 131 140 . . . . 81 . . . . 25 Average 156 | 1 102 60 185 229 . 119 253 250 363 . . . . . 261 155 228 . . . . 177 . . . . 69 Maximum Alert Level 2 | . 1 . 2 1 . . 1 2 2 . . . . . 2 1 2 . . . . 2 . . . . . Low Security (%) 64 | 100 75 100 62 44 . 100 25 28 4 . . . . . 38 98 58 . . . . 64 . . . . 100 Level 1 28 | . 24 . 32 55 . . 74 69 74 . . . . . 55 1 15 . . . . 20 . . . . . Level 2 7 | . . . 4 . . . . 1 21 . . . . . 6 . 26 . . . . 15 . . . . . Level 3 . | . . . . . . . . . . . . . . . . . . . . . . . . . . . . Level 4 . | . . . . . . . . . . . . . . . . . . . . . . . . . . . . Level 5 . | . . . . . . . . . . . . . . . . . . . . . . . . . . . . High Security . | . . . . . . . . . . . . . . . . . . . . . . . . . . . . Max Security . | . . . . . . . . . . . . . . . . . . . . . . . . . . . . Squads Dispatched 37 | . 3 . 1 . . . 1 5 4 . . . . 1 9 . 4 . . . . 7 . 1 . . 1 Investigation 11 | . 3 . . . . . . 2 1 . . . . . 4 . 1 . . . . . . . . . . Extermination 9 | . . . . . . . . . 2 . . . . . 3 . 2 . . . . 2 . . . . . Reinforcement 10 | . . . 1 . . . 1 1 1 . . . . . 1 . . . . . . 4 . . . . 1 Assault 7 | . . . . . . . . 2 . . . . . 1 1 . 1 . . . . 1 . 1 . . . Garrison . | . . . . . . . . . . . . . . . . . . . . . . . . . . . . Intercept . | . . . . . . . . . . . . . . . . . . . . . . . . . . . . Construction Impeded 2 | . . . . . . . . . . . . . . . . . . . . . . 1 . . . . 1 Haulers Reinforced 4 | . . . . . . . . . 1 . . . . . 1 . . . . . . 2 . . . . . Stealth | -11 -10 -10 -9 -9 -9 -8 -8 -8 -7 -7 -7 -7 -7 -6 -6 -6 -6 -6 -6 -6 -5 -5 -5 -5 -5 -4 -4 --------- Run | Scr Mat Min Mat Min Exi Min Mat Sto Fac Low Low Zio Dee Pro Fac Was Fac Low Low Dat Pro Fac Upp Upp War Pro Fac Distress Signals 17 | . 1 1 1 . . . 2 1 1 . . . . . 1 . 1 . . . . 4 . . 1 . 3 Communications Jammed . | . . . . . . . . . . . . . . . . . . . . . . . . . . . . Distress Signals . | . . . . . . . . . . . . . . . . . . . . . . . . . . . . Times Spotted 380 | . 19 14 32 6 . 4 28 17 17 3 5 1 14 21 23 4 17 4 . 1 5 45 11 29 38 5 17 Peak Tracking Total 13 | . 4 3 4 3 . 3 4 5 5 4 4 1 5 10 6 4 6 3 . . 3 9 6 13 13 3 6 Tactical Retreats 47 | . 1 . 8 1 . . 2 3 1 . . . 1 3 3 . 2 . . . . 4 4 8 4 . 2 Traps | -11 -10 -10 -9 -9 -9 -8 -8 -8 -7 -7 -7 -7 -7 -6 -6 -6 -6 -6 -6 -6 -5 -5 -5 -5 -5 -4 -4 ------- Run | Scr Mat Min Mat Min Exi Min Mat Sto Fac Low Low Zio Dee Pro Fac Was Fac Low Low Dat Pro Fac Upp Upp War Pro Fac Traps Triggered 15 | . 3 . . . . . . 4 1 . . . . . 6 . 1 . . . . . . . . . . Indirectly 5 | . . . . . . . . . . . . . . . 5 . . . . . . . . . . . . Trap Hack Attempts . | . . . . . . . . . . . . . . . . . . . . . . . . . . . . Triggered . | . . . . . . . . . . . . . . . . . . . . . . . . . . . . Disarmed . | . . . . . . . . . . . . . . . . . . . . . . . . . . . . Reprogrammed . | . . . . . . . . . . . . . . . . . . . . . . . . . . . . Reused 2 | . . . . . . . . . . . . . . . . . . . . 1 . . . 1 . . . Traps Extracted . | . . . . . . . . . . . . . . . . . . . . . . . . . . . . Installed 6 | . . . . . . . . . . . . . . . . . . . . 4 . . . 2 . . . Triggered 15 | . . . . . . . . . . . . . . . . . . 3 . . 2 . 2 4 4 . . Machines | -11 -10 -10 -9 -9 -9 -8 -8 -8 -7 -7 -7 -7 -7 -6 -6 -6 -6 -6 -6 -6 -5 -5 -5 -5 -5 -4 -4 ---------- Run | Scr Mat Min Mat Min Exi Min Mat Sto Fac Low Low Zio Dee Pro Fac Was Fac Low Low Dat Pro Fac Upp Upp War Pro Fac Machines Disabled 47 | . 1 2 3 . . . 1 5 7 . . 3 1 . 20 . 2 . . . . 2 . . . . . Max in Single Turn 7 | . 1 1 1 . . . 1 1 4 . . 1 1 . 7 . 1 . . . . 1 . . . . . Garrison Access 5 | . . . . . . . . 1 2 . . . . . . . 1 . . . . 1 . . . . . Machines Sabotaged . | . . . . . . . . . . . . . . . . . . . . . . . . . . . . Garrisons Compromised . | . . . . . . . . . . . . . . . . . . . . . . . . . . . . Overloaded Fab Kills . | . . . . . . . . . . . . . . . . . . . . . . . . . . . . Fab Network Shutdowns 1 | . . . . . . . . . . . . . . . . . 1 . . . . . . . . . . Hacking | -11 -10 -10 -9 -9 -9 -8 -8 -8 -7 -7 -7 -7 -7 -6 -6 -6 -6 -6 -6 -6 -5 -5 -5 -5 -5 -4 -4 --------- Run | Scr Mat Min Mat Min Exi Min Mat Sto Fac Low Low Zio Dee Pro Fac Was Fac Low Low Dat Pro Fac Upp Upp War Pro Fac Machines Accessed 89 | . 9 . 8 . 1 . 8 18 7 . . . . . 10 . 12 . . 4 . 12 . . . . . Terminals 62 | . 7 . 6 . . . 7 16 2 . . . . . 8 . 9 . . . . 7 . . . . . Fabricators 8 | . . . . . . . . . 1 . . . . . 2 . 2 . . . . 3 . . . . . Repair Stations 4 | . . . . . . . 1 1 1 . . . . . . . . . . . . 1 . . . . . Recycling Units 3 | . 2 . 1 . . . . . . . . . . . . . . . . . . . . . . . . Scanalyzers 1 | . . . 1 . . . . . . . . . . . . . . . . . . . . . . . . Garrison Access 6 | . . . . . . . . 1 3 . . . . . . . 1 . . . . 1 . . . . . Total Hacks 303 | . 29 . 25 . 6 . 23 55 19 . . . . . 31 . 32 . . 23 . 60 . . . . . Successful 190 | . 16 . 16 . 6 . 11 31 10 . . . . . 19 . 22 . . 23 . 36 . . . . . Failed 112 | . 13 . 9 . . . 12 24 9 . . . . . 12 . 10 . . . . 23 . . . . . Catastrophic 15 | . . . 1 . . . 1 3 2 . . . . . 4 . 1 . . . . 3 . . . . . Database Lockouts 1 | . . . . . . . . . . . . . . . . . . . . . . 1 . . . . . Manual 201 | . 28 . 19 . . . 18 42 5 . . 1 . . 27 . 18 . . . . 42 . . 1 . . Terminals 213 | . 27 . 22 . . . 20 51 3 . . . . . 26 . 23 . . . . 41 . . . . . Fabricators 32 | . . . . . . . . . 5 . . . . . 5 . 8 . . . . 14 . . . . . Repair Stations 10 | . . . . . . . 3 2 2 . . . . . . . . . . . . 3 . . . . . Recycling Units 3 | . 2 . 1 . . . . . . . . . . . . . . . . . . . . . . . . Scanalyzers 2 | . . . 2 . . . . . . . . . . . . . . . . . . . . . . . . Garrison Access 14 | . . . . . . . . 2 9 . . . . . . . 1 . . . . 2 . . . . . Terminal Hacks 100 | . 7 . 7 . 6 . 4 18 . . . . . . 9 . 10 . . 23 . 16 . . . . . Record 17 | . . . . . 6 . . . . . . . . . . . . . . 11 . . . . . . . Part Schematic 14 | . 2 . . . . . 1 . . . . . . . 2 . 1 . . 4 . 4 . . . . . Robot Schematic 5 | . . . . . . . . . . . . . . . . . . . . 5 . . . . . . . Prototype ID Bank 3 | . . . . . . . . . . . . . . . . . . . . 3 . . . . . . . Open Door 6 | . . . . . . . . 6 . . . . . . . . . . . . . . . . . . . Branch Access Points 6 | . 1 . 1 . . . 1 . . . . . . . 1 . 1 . . . . 1 . . . . . Emergency Access Points 1 | . . . . . . . . . . . . . . . . . 1 . . . . . . . . . . Machine Index 2 | . . . . . . . . 1 . . . . . . . . 1 . . . . . . . . . . Terminal Index 5 | . 1 . . . . . 1 1 . . . . . . 1 . 1 . . . . . . . . . . Fabricator Index 1 | . . . . . . . . . . . . . . . . . . . . . . 1 . . . . . Repair Station Index 1 | . . . . . . . 1 . . . . . . . . . . . . . . . . . . . . Garrison Index 1 | . . . . . . . . . . . . . . . . . 1 . . . . . . . . . . Alert Level 11 | . 2 . 1 . . . . 2 . . . . . . 1 . 1 . . . . 4 . . . . . Unreport Threat 7 | . . . . . . . . 2 . . . . . . 2 . 1 . . . . 2 . . . . . Locate Traps 2 | . . . 1 . . . . . . . . . . . . . . . . . . 1 . . . . . Recall Extermination 1 | . . . . . . . . . . . . . . . . . 1 . . . . . . . . . . Recall Reinforcements 1 | . . . . . . . . 1 . . . . . . . . . . . . . . . . . . . Recall Assault 2 | . . . . . . . . 1 . . . . . . 1 . . . . . . . . . . . . Hauler Manifests 2 | . . . 1 . . . . . . . . . . . . . . . . . . 1 . . . . . Zone Layout 12 | . 1 . 3 . . . . 4 . . . . . . 1 . 1 . . . . 2 . . . . . Fabricator Hacks 16 | . . . . . . . . . 3 . . . . . 4 . 3 . . . . 6 . . . . . Load Schematic 7 | . . . . . . . . . 1 . . . . . 2 . 1 . . . . 3 . . . . . Build 9 | . . . . . . . . . 2 . . . . . 2 . 2 . . . . 3 . . . . . Repair Station Hacks 8 | . . . . . . . 2 2 2 . . . . . . . . . . . . 2 . . . . . Scan Component 4 | . . . . . . . 1 1 1 . . . . . . . . . . . . 1 . . . . . Repair 4 | . . . . . . . 1 1 1 . . . . . . . . . . . . 1 . . . . . Recycling Unit Hacks 1 | . . . 1 . . . . . . . . . . . . . . . . . . . . . . . . Report Inventory 1 | . . . 1 . . . . . . . . . . . . . . . . . . . . . . . . Scanalyzer 2 | . . . 2 . . . . . . . . . . . . . . . . . . . . . . . . Insert Component 1 | . . . 1 . . . . . . . . . . . . . . . . . . . . . . . . Analyze 1 | . . . 1 . . . . . . . . . . . . . . . . . . . . . . . . Garrison Access Hacks 5 | . . . . . . . . 1 2 . . . . . . . 1 . . . . 1 . . . . . Seal Access 5 | . . . . . . . . 1 2 . . . . . . . 1 . . . . 1 . . . . . Unauthorized Hacks 58 | . 9 . 6 . . . 5 10 3 . . . . . 6 . 8 . . . . 11 . . . . . Terminals 47 | . 7 . 6 . . . 5 10 1 . . . . . 6 . 5 . . . . 7 . . . . . Track 9 | . 2 . 2 . . . . 4 . . . . . . . . . . . . . 1 . . . . . Assimilate 6 | . . . . . . . . . 1 . . . . . 3 . 1 . . . . 1 . . . . . Botnet 30 | . 5 . 4 . . . 5 6 . . . . . . 2 . 4 . . . . 4 . . . . . Operators 2 | . . . . . . . . . . . . . . . 1 . . . . . . 1 . . . . . Fabricators 8 | . . . . . . . . . 2 . . . . . . . 3 . . . . 3 . . . . . Report 1 | . . . . . . . . . . . . . . . . . 1 . . . . . . . . . . Prioritize 4 | . . . . . . . . . 1 . . . . . . . 1 . . . . 2 . . . . . Siphon 3 | . . . . . . . . . 1 . . . . . . . 1 . . . . 1 . . . . . Repair Stations . | . . . . . . . . . . . . . . . . . . . . . . . . . . . . Recycling Units 2 | . 2 . . . . . . . . . . . . . . . . . . . . . . . . . . Tunnel 2 | . 2 . . . . . . . . . . . . . . . . . . . . . . . . . . Scanalyzers . | . . . . . . . . . . . . . . . . . . . . . . . . . . . . Garrison Access 1 | . . . . . . . . . . . . . . . . . . . . . . 1 . . . . . Reprogram 1 | . . . . . . . . . . . . . . . . . . . . . . 1 . . . . . Data Cores Recovered . | . . . . . . . . . . . . . . . . . . . . . . . . . . . . Used . | . . . . . . . . . . . . . . . . . . . . . . . . . . . . Hacking Detections 75 | . 6 . 6 . . . 8 17 6 . . . . . 10 . 11 . . . . 11 . . . . . Full Trace Events 9 | . . . . . . . . 4 1 . . . . . 4 . . . . . . . . . . . . Feedback Events . | . . . . . . . . . . . . . . . . . . . . . . . . . . . . Feedback Blocked . | . . . . . . . . . . . . . . . . . . . . . . . . . . . . Robot Schematics Acquired 5 | . . . . . . . . . . . . . . . . . . . . 5 . . . . . . . Robots Built . | . . . . . . . . . . . . . . . . . . . . . . . . . . . . Matter . | . . . . . . . . . . . . . . . . . . . . . . . . . . . . Time . | . . . . . . . . . . . . . . . . . . . . . . . . . . . . Total Robot Build Rating . | . . . . . . . . . . . . . . . . . . . . . . . . . . . . Part Schematics Acquired 15 | . 2 . 1 . . . 1 . . . . . . . 2 . 1 . . 4 . 4 . . . . . Parts Built 15 | . . . . . . . . . 4 . . . . . 3 . 4 . . . . 4 . . . . . Matter 1836 | . . . . . . . . . 332 . . . . . 402 . 371 . . . . 731 . . . . . Time 743 | . . . . . . . . . 142 . . . . . 201 . 159 . . . . 241 . . . . . Total Part Build Rating 87 | . . . . . . . . . 20 . . . . . 17 . 24 . . . . 26 . . . . . Parts Repaired 4 | . . . . . . . 1 1 1 . . . . . . . . . . . . 1 . . . . . Time 168 | . . . . . . . 50 50 50 . . . . . . . . . . . . 18 . . . . . Parts Recycled . | . . . . . . . . . . . . . . . . . . . . . . . . . . . . Recycled Matter . | . . . . . . . . . . . . . . . . . . . . . . . . . . . . Retrieved Matter . | . . . . . . . . . . . . . . . . . . . . . . . . . . . . Retrieved Components . | . . . . . . . . . . . . . . . . . . . . . . . . . . . . Parts Scanalyzed 1 | . . . 1 . . . . . . . . . . . . . . . . . . . . . . . . Part Schematics Acquired 1 | . . . 1 . . . . . . . . . . . . . . . . . . . . . . . . Parts Damaged . | . . . . . . . . . . . . . . . . . . . . . . . . . . . . Bothacking | -11 -10 -10 -9 -9 -9 -8 -8 -8 -7 -7 -7 -7 -7 -6 -6 -6 -6 -6 -6 -6 -5 -5 -5 -5 -5 -4 -4 ------------ Run | Scr Mat Min Mat Min Exi Min Mat Sto Fac Low Low Zio Dee Pro Fac Was Fac Low Low Dat Pro Fac Upp Upp War Pro Fac Used RIF Installer . | . . . . . . . . . . . . . . . . . . . . . . . . . . . . Robots Hacked 2 | . . . . . . . . . . . . . . . . . . . . 1 . 1 . . . . . Non-combat 1 | . . . . . . . . . . . . . . . . . . . . . . 1 . . . . . Combat 1 | . . . . . . . . . . . . . . . . . . . . 1 . . . . . . . Robot Hacks Applied 2 | . . . . . . . . . . . . . . . . . . . . 1 . 1 . . . . . parse_system 1 | . . . . . . . . . . . . . . . . . . . . 1 . . . . . . . find_chute 1 | . . . . . . . . . . . . . . . . . . . . . . 1 . . . . . Relay Couplers Released . | . . . . . . . . . . . . . . . . . . . . . . . . . . . . Robots Rewired 3 | . . . . . . . . . . . . . . 2 . . . . . 1 . . . . . . . Allies Hacked . | . . . . . . . . . . . . . . . . . . . . . . . . . . . . Hacks Repelled 1 | . . . . . . . . . . . . . . . . . . . . . . . . . 1 . . Allies | -11 -10 -10 -9 -9 -9 -8 -8 -8 -7 -7 -7 -7 -7 -6 -6 -6 -6 -6 -6 -6 -5 -5 -5 -5 -5 -4 -4 -------- Run | Scr Mat Min Mat Min Exi Min Mat Sto Fac Low Low Zio Dee Pro Fac Was Fac Low Low Dat Pro Fac Upp Upp War Pro Fac Total Allies 22 | . . . . . . . . 12 1 . . 2 . 2 2 . 1 . . 1 . 1 . . . . . Largest Group 10 | . . . . . . . . 10 1 1 1 3 3 5 4 . 1 . . 1 1 1 . . . . . Highest-Rated Group 258 | . . . . . . . . 173 26 26 26 214 214 258 239 . 10 . . 94 94 26 . . . . . Highest-Rated Ally 94 | . . . . . . . . 31 26 26 26 94 94 94 94 . 10 . . 94 94 26 . . . . . Total Orders 7 | . . . . . . . . . . . . . . . 6 . 1 . . . . . . . . . . STAY 2 | . . . . . . . . . . . . . . . 2 . . . . . . . . . . . . FOLLOW 1 | . . . . . . . . . . . . . . . 1 . . . . . . . . . . . . RETURN 4 | . . . . . . . . . . . . . . . 3 . 1 . . . . . . . . . . Ally Attacks 243 | . . . . . . . . 117 . . . . 49 60 5 . . . . . 12 . . . . . . Total Damage 4866 | . . . . . . . . 1537 . . . . 1248 1428 145 . . . . . 508 . . . . . . Kills 42 | . . . . . . . . 18 . . . . 10 9 1 . . . . . 4 . . . . . . Allies Corrupted . | . . . . . . . . . . . . . . . . . . . . . . . . . . . . Allies Melted . | . . . . . . . . . . . . . . . . . . . . . . . . . . . . Intel | -11 -10 -10 -9 -9 -9 -8 -8 -8 -7 -7 -7 -7 -7 -6 -6 -6 -6 -6 -6 -6 -5 -5 -5 -5 -5 -4 -4 ------- Run | Scr Mat Min Mat Min Exi Min Mat Sto Fac Low Low Zio Dee Pro Fac Was Fac Low Low Dat Pro Fac Upp Upp War Pro Fac Robot Analysis Total . | . . . . . . . . . . . . . . . . . . . . . . . . . . . . Derelict Logs Recovered 15 | . . 3 . 2 . . . . . 1 1 1 . 1 . . . 1 1 . 2 . 2 . . . . Drone Launches 4 | . . . . . . . . . . . . . . . 3 . 1 . . . . . . . . . . Drone Recoveries 4 | . . . . . . . . . . . . . . . 3 . 1 . . . . . . . . . . Exploration | -11 -10 -10 -9 -9 -9 -8 -8 -8 -7 -7 -7 -7 -7 -6 -6 -6 -6 -6 -6 -6 -5 -5 -5 -5 -5 -4 -4 ------------- Run | Scr Mat Min Mat Min Exi Min Mat Sto Fac Low Low Zio Dee Pro Fac Was Fac Low Low Dat Pro Fac Upp Upp War Pro Fac Turns Passed 23181 | 3983 1468 1063 1112 677 255 92 979 945 1241 330 214 674 608 672 1322 109 1485 468 166 129 361 2672 401 587 705 294 169 Spaces Moved 17872 | 536 670 955 955 791 334 92 691 659 1130 397 255 831 565 546 1230 120 1675 556 241 153 411 2193 428 448 638 301 71 Core 13 | 13 . . . . . . . . . . . . . . . . . . . . . . . . . . . Treads . | . . . . . . . . . . . . . . . . . . . . . . . . . . . . Legs 1347 | 523 670 154 . . . . . . . . . . . . . . . . . . . . . . . . . Wheels . | . . . . . . . . . . . . . . . . . . . . . . . . . . . . Hover 16512 | . . 801 955 791 334 92 691 659 1130 397 255 831 565 546 1230 120 1675 556 241 153 411 2193 428 448 638 301 71 Flight . | . . . . . . . . . . . . . . . . . . . . . . . . . . . . Fastest Speed 50 | 50 120 76 76 76 76 76 62 62 62 72 72 72 72 72 68 68 68 68 68 68 68 68 68 68 68 68 52 Average Speed 75 | 120 156 92 76 76 76 76 70 63 66 72 72 72 72 72 68 68 68 68 68 68 68 68 68 68 68 68 71 Slowest Speed 240 | 200 240 180 146 76 76 76 150 126 126 72 72 72 72 72 142 68 68 68 68 68 68 68 68 142 142 142 150 Overloaded Moves 1 | . . . . . . . . . . . . . . . . . . . . . . . . . . . 1 Propulsion Burnouts . | . . . . . . . . . . . . . . . . . . . . . . . . . . . . Robots Hopped 1 | . . . . . . . . . . . . . . . 1 . . . . . . . . . . . . Cave-ins Triggered . | . . . . . . . . . . . . . . . . . . . . . . . . . . . . Exploration Rate (%) 57 | 36 96 97 59 97 76 20 49 83 28 63 48 83 66 72 33 67 49 56 39 77 57 37 53 55 75 47 2 Regions Visited 27 Branch Regions 18 Pre-discovered Areas 9 | . 2 1 . . 1 . . . . . 1 2 . . . . . 1 . 1 . . . . . . . Known Exits Taken 22 | . 1 . 1 1 1 1 1 . 1 1 1 1 1 1 . . 1 1 1 1 1 1 1 1 1 1 . Unknown Exits Taken 3 | 1 . 1 . . . . . 1 . . . . . . . . . . . . . . . . . . . Scrap Searched 24 | . . 2 . . . . . . . 3 2 5 . 4 . . . 2 . . 1 . 3 1 . 1 . Spaces Dug 136 | . 26 . . . . 5 2 4 3 . . . 1 . 11 13 15 7 . . . 21 2 5 . 21 . Terrain Destroyed 1031 | . 26 123 68 54 . 40 78 16 65 7 26 . 32 28 87 97 51 95 . . . 91 2 5 . 31 9 Melee 67 | . . . . . . . . 4 3 . . . 1 . 11 . 15 7 . . . 19 2 5 . . . Projectile 43 | . . . . . . . 2 . . . . . . . . . . . . . . 2 . . . 31 8 AOE 921 | . 26 123 68 54 . 40 76 12 62 7 26 . 31 28 76 97 36 88 . . . 70 . . . . 1 Terrain Rammed . | . . . . . . . . . . . . . . . . . . . . . . . . . . . . Walls Destroyed . | . . . . . . . . . . . . . . . . . . . . . . . . . . . . Machines Disabled . | . . . . . . . . . . . . . . . . . . . . . . . . . . . . Actions | -11 -10 -10 -9 -9 -9 -8 -8 -8 -7 -7 -7 -7 -7 -6 -6 -6 -6 -6 -6 -6 -5 -5 -5 -5 -5 -4 -4 --------- Run | Scr Mat Min Mat Min Exi Min Mat Sto Fac Low Low Zio Dee Pro Fac Was Fac Low Low Dat Pro Fac Upp Upp War Pro Fac Total 26426 | 3855 1003 1112 1267 845 335 106 1094 1140 1556 435 277 901 750 799 1606 133 1957 619 242 174 477 3202 488 665 883 353 152 Wait 7283 | 3305 246 125 217 26 . 8 288 421 332 30 8 55 149 225 279 2 189 32 2 3 50 844 29 166 198 22 32 Move 17844 | 535 669 954 954 790 333 91 690 658 1129 396 254 830 564 545 1228 119 1674 555 240 152 410 2192 427 447 637 300 71 Hop 1 | . . . . . . . . . . . . . . . 1 . . . . . . . . . . . . Pick Up 121 | 1 14 3 9 3 . . 13 2 14 1 2 1 6 . 5 . 13 5 . 2 2 10 1 . 8 1 5 Fast Attach 64 | 6 4 3 5 1 . . 13 11 2 . . 3 . . 2 . 2 . . . . 4 1 2 1 1 3 Attach 48 | . 4 1 5 . . . 4 . 4 . . . . . 5 . . 1 . 1 . 4 . 2 4 5 8 Detach 4 | . . . . . . . 1 . 1 . . . . . . . . . . 1 . . . . 1 . . Swap 176 | . 12 3 10 3 1 . 11 7 23 2 4 5 11 2 26 1 10 4 . 2 1 19 3 2 5 6 3 Drop 133 | . 7 4 13 2 1 . 20 14 9 1 2 4 7 . 5 . 14 3 . 4 . 10 1 . 6 . 6 Fire 600 | 8 47 19 54 20 . 7 54 20 39 5 7 3 12 24 36 11 31 10 . 4 14 52 24 38 19 18 24 Melee 143 | . . . . . . . . 7 3 . . . 1 . 19 . 24 9 . 1 . 67 2 6 4 . . Ram . | . . . . . . . . . . . . . . . . . . . . . . . . . . . . Kick . | . . . . . . . . . . . . . . . . . . . . . . . . . . . . Crush . | . . . . . . . . . . . . . . . . . . . . . . . . . . . . Escape Stasis . | . . . . . . . . . . . . . . . . . . . . . . . . . . . . Rewire 3 | . . . . . . . . . . . . . . 3 . . . . . . . . . . . . . Trap 6 | . . . . . . . . . . . . . . . . . . . . 4 . . . 2 . . . Miscellaneous . | . . . . . . . . . . . . . . . . . . . . . . . . . . . . Route ------- -11/Scrapyard -10/Materials (discovered 4 exits: *Mat x3 / *Min) -10/Mines (discovered 2 exits: *Mat x2) -9/Materials (discovered 2 exits: *Mat / *Min) -9/Mines (discovered 2 exits: *Mat / *Exi) -9/Exiles -8/Mines -8/Materials (discovered 4 exits: *Fac x2 / *Sto x2) -8/Storage (discovered 2 exits: *Fac / [Rec]) -7/Factory -7/Lower Caves -7/Lower Caves -7/Zion (discovered 2 exits: *Dee / [*Pro]) -7/Deep Caves -6/Proximity Caves -6/Factory (discovered 3 exits: *Fac / *Low x2) -6/Waste -6/Factory (discovered 4 exits: *Fac x2 / *Low x2) -6/Lower Caves -6/Lower Caves (discovered 2 exits: *Fac / *Dat) -6/Data Miner -5/Proximity Caves -5/Factory (discovered 5 exits: *Fac / *Upp x2 / Ext x2) -5/Upper Caves -5/Upper Caves -5/Warlord -4/Proximity Caves -4/Factory History --------- Turn | Location | Event 20 | -11/Scrapyard | Discovered new exit (range 15) 3984 | -11/Scrapyard | Entered Materials 3985 | -10/Materials | Build established: Mutant 4150 | -10/Materials | Discovered new exit (range 15) 4203 | -10/Materials | Discovered new exit (range 7) 4623 | -10/Materials | Discovered new exit (range 15) 4735 | -10/Materials | Lost 3 parts (1p2w) 5275 | -10/Materials | Discovered new exit (range 16) 5305 | -10/Materials | Identified exit to Mines 5452 | -10/Materials | Entered Mines 5453 | -10/Mines | Learned location of Storage (-8) 5453 | -10/Mines | Assembled infested the area 5548 | -10/Mines | Learned Materials interactive machine intel 5630 | -10/Mines | Learned 2 Materials zone layouts 5755 | -10/Mines | Learned Materials stockpile data 5932 | -10/Mines | Discovered new exit (range 8) 5943 | -10/Mines | Discovered new exit (range 5) 5952 | -10/Mines | Core integrity fell below 50% 6062 | -10/Mines | Build established: Scavenger-Mutant 6515 | -10/Mines | Entered Materials 6515 | -9/Materials | Evolved 2 slots: Utility x2 6516 | -9/Materials | Identified exit to Mines 6518 | -9/Materials | Loaded intel: 18 interactive machine locations 7243 | -9/Materials | Discovered new exit (range 16) 7362 | -9/Materials | Lost 3 parts (1p2w) 7627 | -9/Materials | Entered Mines 7664 | -9/Mines | Discovered new exit (range 12) 7709 | -9/Mines | Received a Rocket Launcher from a helpful Derelict 7840 | -9/Mines | Identified exit to Materials 7893 | -9/Mines | YI-UF0 nonchalantly dropped a Grenade Launcher on the ground 7914 | -9/Mines | Destroyed YI-UF0 7922 | -9/Mines | Found Prototype Storage 7976 | -9/Mines | Identified YI-UF0's Bottomless Matter Pit 7993 | -9/Mines | Learned Materials emergency access door positions 8138 | -9/Mines | Learned Materials terminal intel 8204 | -9/Mines | Deemed a non-threat by the Exiles lab entrance 8205 | -9/Mines | Discovered new exit (range 5) 8303 | -9/Mines | Identified exit to Exiles 8304 | -9/Mines | Entered Exiles 8323 | -9/Exiles | Met 8R-AWN 8336 | -9/Exiles | Met EX-HEX 8366 | -9/Exiles | Met EX-DEC 8371 | -9/Exiles | Learned location of Zion (-7) 8384 | -9/Exiles | Met EX-BIN 8416 | -9/Exiles | Visited The Gauntlet 8551 | -9/Exiles | Discovered new exit (range 12) 8558 | -9/Exiles | Identified exit to Mines 8559 | -9/Exiles | Entered Mines 8646 | -8/Mines | Discovered exit to Materials (range 7) 8651 | -8/Mines | Entered Materials 8651 | -8/Materials | Evolved 2 slots: Propulsion x1, Utility x1 8653 | -8/Materials | Loaded intel: 11 terminal locations 8990 | -8/Materials | Lost 3 parts (1n1u1w) 9062 | -8/Materials | Discovered new exit (range 16) 9241 | -8/Materials | Build established: Mutant 9296 | -8/Materials | Repaired Cmb. Airjet 9354 | -8/Materials | Discovered new exit (range 8) 9458 | -8/Materials | Identified exit to Storage 9630 | -8/Materials | Entered Storage 9951 | -8/Storage | Destroyed 8 combat bots 9999 | -8/Storage | Repaired Cmb. Airjet 10100 | -8/Storage | Discovered new exit (range 15) 10153 | -8/Storage | Assisted by bots powering up and referring to "LRC-V3" 10351 | -8/Storage | Discovered new exit (range 5) 10404 | -8/Storage | Met a pair of Derelict thieves 10451 | -8/Storage | Build established: Commander-Mutant 10575 | -8/Storage | Entered Factory 10575 | -7/Factory | Evolved 2 slots: Power x1, Utility x1 10722 | -7/Factory | Discovered new exit (range 15) 10790 | -7/Factory | Repaired Cmb. Airjet 10800 | -7/Factory | Identified exit to Lower Caves 11172 | -7/Factory | Fabricated Cmb. Airjet? 11253 | -7/Factory | Fabricated Cmb. Airjet? 11378 | -7/Factory | Build established: Mutant 11816 | -7/Factory | Entered Lower Caves 11816 | -7/Lower Caves | Accompanied by 1 ally 11891 | -7/Lower Caves | Encountered a Warlord checkpoint 12027 | -7/Lower Caves | Learned Factory stockpile data 12130 | -7/Lower Caves | Discovered new exit (range 12) 12142 | -7/Lower Caves | Identified exit to Lower Caves 12146 | -7/Lower Caves | Entered another Lower Caves area 12146 | -7/Lower Caves | Accompanied by 1 ally 12220 | -7/Lower Caves | Destroyed 8 combat bots 12341 | -7/Lower Caves | Discovered new exit (range 13) 12355 | -7/Lower Caves | Identified exit to Zion 12360 | -7/Lower Caves | Entered Zion 12360 | -7/Zion | Accompanied by 1 ally 12384 | -7/Zion | System corruption cleaned by Quarantine Array 12408 | -7/Zion | Given A8's code to call for help 12408 | -7/Zion | Discovered new exit (range 16) 12474 | -7/Zion | Learned location of Warlord (-5) 12479 | -7/Zion | Found CR-A16's Pointy Stick 12523 | -7/Zion | Learned location of Data Miner (-6) 12544 | -7/Zion | Learned Factory emergency access door positions 12641 | -7/Zion | Given the Hacking Drone Bay 12647 | -7/Zion | Found Prototype Device 12647 | -7/Zion | Identified Hacking Drone Bay 12678 | -7/Zion | Received a hallucinogenic algorithm 12886 | -7/Zion | Enhanced Grunt warped into view, answering call for help 12888 | -7/Zion | Enhanced Grunt warped into view, answering call for help 12894 | -7/Zion | Discovered new exit (range 4) 12894 | -7/Zion | Saw the warning signs outside the Deep Caves entrance 12896 | -7/Zion | Identified exit to Deep Caves 13034 | -7/Zion | Entered Deep Caves 13034 | -7/Deep Caves | Accompanied by 3 allies 13102 | -7/Deep Caves | Attacked by Z-Imprinter 13106 | -7/Deep Caves | Destroyed Z-Imprinter 13137 | -7/Deep Caves | Found Prototype Protection 13146 | -7/Deep Caves | Identified Zio. Weapon Casing 13213 | -7/Deep Caves | Z-Facility disabled 13241 | -7/Deep Caves | Found Zio. Weapon Casing 13251 | -7/Deep Caves | Found Zio. Weapon Casing 13268 | -7/Deep Caves | Found Zio. Weapon Casing 13454 | -7/Deep Caves | Discovered new exit (range 8) 13459 | -7/Deep Caves | Identified exit to Proximity Caves 13642 | -7/Deep Caves | Entered Proximity Caves 13642 | -6/Proximity Caves | Accompanied by 3 allies 14210 | -6/Proximity Caves | Attracted the attention of an 0b10 outpost 14236 | -6/Proximity Caves | Discovered new exit (range 14) 14247 | -6/Proximity Caves | Identified exit to Factory 14251 | -6/Proximity Caves | Destroyed 8 combat bots 14314 | -6/Proximity Caves | Entered Factory 14314 | -6/Factory | Accompanied by 4 allies 14314 | -6/Factory | Evolved 2 slots: Propulsion x1, Utility x1 14420 | -6/Factory | Found Prototype Device 14610 | -6/Factory | Identified exit to Lower Caves 14627 | -6/Factory | Discovered new exit (range 5) 14647 | -6/Factory | Identified exit to Factory 14664 | -6/Factory | First assault squad dispatched 14868 | -6/Factory | Build established: Hauler-Mutant 15337 | -6/Factory | Fabricated Imp. Hacking Suite (x1) 15537 | -6/Factory | Fabricated Cmb. Gravmag System (x2) 15636 | -6/Factory | Manually triggered Chute Trap 15636 | -6/Factory | Sucked down chute 15636 | -6/Factory | Entered Waste 15670 | -6/Waste | Spotted C-40 Crusher 15672 | -6/Waste | Spotted C-40 Crusher 15680 | -6/Waste | Spotted C-40 Crusher 15684 | -6/Waste | Spotted C-40 Crusher 15705 | -6/Waste | Destroyed C-40 Crusher 15705 | -6/Waste | Destroyed C-40 Crusher 15718 | -6/Waste | Discovered new exit (range 12) 15732 | -6/Waste | Identified exit to Factory 15745 | -6/Waste | Entered Factory 15923 | -6/Factory | Found Prototype Device 15995 | -6/Factory | Discovered exit to Factory (range 15) 16402 | -6/Factory | Fabricated Cmb. Gravmag System (x2) 16461 | -6/Factory | Fabricated Cmb. Gravmag System (x2) 16496 | -6/Factory | Spotted B-75 Beast 16497 | -6/Factory | Revealed the true nature of CR-A16's Pointy Stick 16523 | -6/Factory | Discovered exit to Factory (range 8) 16710 | -6/Factory | Build established: Machinist-Mutant 16840 | -6/Factory | Local fabrication network quarantined 17145 | -6/Factory | First assault squad dispatched 17230 | -6/Factory | Entered Lower Caves 17231 | -6/Lower Caves | Identified Exp. Sensor Array (x2) 17382 | -6/Lower Caves | Attracted the attention of an 0b10 checkpoint 17647 | -6/Lower Caves | Build established: Hauler-Mutant 17694 | -6/Lower Caves | Discovered new exit (range 6) 17696 | -6/Lower Caves | Identified exit to Lower Caves 17698 | -6/Lower Caves | Entered another Lower Caves area 17699 | -6/Lower Caves | Encountered a Warlord checkpoint 17725 | -6/Lower Caves | Discovered exit to Factory (range 5) 17822 | -6/Lower Caves | Learned Factory trap positions 17834 | -6/Lower Caves | Discovered new exit (range 13) 17841 | -6/Lower Caves | Identified exit to Data Miner 17864 | -6/Lower Caves | Entered Data Miner 17864 | -6/Data Miner | Discovered new exit (range 6) 17877 | -6/Data Miner | Met Data Miner 17906 | -6/Data Miner | Learned location of Section 7 (-2) 17906 | -6/Data Miner | Acquired the access code to Warlord's prototype stash 17917 | -6/Data Miner | Received God Mode back door access code from Data Miner 17954 | -6/Data Miner | Destroyed Data Miner 17957 | -6/Data Miner | Found Prototype Hackware 17959 | -6/Data Miner | Data Conduit disabled 17959 | -6/Data Miner | Found Prototype Hackware 17989 | -6/Data Miner | Identified exit to Proximity Caves 17993 | -6/Data Miner | Entered Proximity Caves 17993 | -5/Proximity Caves | Accompanied by 1 ally 18218 | -5/Proximity Caves | Learned Factory terminal intel 18354 | -5/Proximity Caves | Entered Factory 18354 | -5/Factory | Evolved 2 slots: Utility x2 18354 | -5/Factory | Identified System Mapper 18355 | -5/Factory | Identified exit to Extension 18355 | -5/Factory | Identified Quantum Router 18356 | -5/Factory | Loaded intel: 110 trap records 18357 | -5/Factory | Loaded intel: 21 terminal locations 18652 | -5/Factory | Build established: Hacker-Mutant 19480 | -5/Factory | Fabricated Imp. Armor Integrity Analyzer (x1) 19524 | -5/Factory | Discovered new exit (range 6) 19528 | -5/Factory | Identified exit to Upper Caves 19596 | -5/Factory | Central database locked down 19640 | -5/Factory | Repaired Cmb. Gravmag System 20384 | -5/Factory | Fabricated Hyp. Railgun (x2) 20396 | -5/Factory | Discovered new exit (range 16) 20625 | -5/Factory | Fabricated Exp. Signal Interpreter? 20754 | -5/Factory | First assault squad dispatched 20940 | -5/Factory | Destroyed 7 combat bots 21026 | -5/Factory | Entered Upper Caves 21222 | -5/Upper Caves | Identified exit to Upper Caves 21233 | -5/Upper Caves | Encountered a Warlord checkpoint 21427 | -5/Upper Caves | Entered another Upper Caves area 21428 | -5/Upper Caves | Identified exit to Warlord 21589 | -5/Upper Caves | Attracted the attention of an 0b10 outpost 21684 | -5/Upper Caves | Destroyed 11 combat bots 22014 | -5/Upper Caves | Entered Warlord 22037 | -5/Warlord | System corruption cleaned by Quarantine Array 22248 | -5/Warlord | Met Warlord 22254 | -5/Warlord | Opened Warlord's prototype stash 22257 | -5/Warlord | Found Prototype Device 22259 | -5/Warlord | Identified Exp. Phase Shifter 22263 | -5/Warlord | Found Prototype Device 22264 | -5/Warlord | Identified Thermal Barrier 22273 | -5/Warlord | Warlord's base attacked by MAIN.C 22278 | -5/Warlord | Found Prototype Processor 22514 | -5/Warlord | Warlord forces counterattacked 22573 | -5/Warlord | Discovered new exit (range 12) 22647 | -5/Warlord | Identified exit to Proximity Caves 22673 | -5/Warlord | Spotted Executioner 22673 | -5/Warlord | Spotted Executioner 22719 | -5/Warlord | Entered Proximity Caves 22882 | -4/Proximity Caves | Spotted B-86 Titan 23002 | -4/Proximity Caves | Lost 3 parts (2p1n) 23009 | -4/Proximity Caves | Discovered new exit (range 6) 23012 | -4/Proximity Caves | Identified exit to Factory 23013 | -4/Proximity Caves | Entered Factory 23013 | -4/Factory | Evolved 2 slots: Utility x2 23014 | -4/Factory | Identified Exp. Core Analyzer 23182 | -4/Factory | Self-destructed Last Messages --------------- 23161_ Cmb. Gravmag System destroyed. 23163_ Slug penetrates Wall. 23163_ U-05 Engineer builds a Door. 23163_ Penetrated by Slug. 23171_ Cmb. Gravmag System destroyed. 23171_ Slug penetrates Wall. 23173_ Penetrated by Slug. 23173_ Slug penetrates Wall. 23173_ Dropped Lrg. Storage Unit. 23174_ Acquired Cld. Antigrav System. 23175_ Penetrated by Slug. 23176_ Lgt. Ion Engine destroyed. 23178_ Cld. Antigrav System destroyed. 23178_ Extracted 20 matter. 23179_ Acquired YI-UF0's Bottomless Matter Pit. 23179_ Penetrated by Slug. 23180_ G-67 Veteran IFF system glitched. 23181_ Adv. Hacking Suite destroyed. 23181_ Penetrated by Slug. 23181_ Cmb. Gravmag System destroyed. Map ----- +----------------------------------------------------+ | ?????????????????????????????????????????????????? | | ?????????????????????????????????????????????????? | | ?????????????????????????????????????????????????? | | ?????????????????????????????????????????????????? | | ?????????????????????????????????????????????????? | | ?????????????????????????????????????????????????? | | ?????????????????????????????????????????????????? | | ?????????????????????????????????????????????????? | | ?????????????????????????????????????????????????? | | ?????????????????????????????????????????????????? | | ???????????????????????#####?????????????????????? | | ??????????????????????# ???????????????????? | | ??????????????????????# ????????????????????? | | ??????????????????????# ????????????????????? | | ??????????????????????# ????????????????????? | | ??????????????????????# m ????????????????????? | | ??????????????????????# #????????????????????? | | ??????????????????????# #????????????????????? | | ??????????????????????# #????????????????????? | | ??????????????????????# #????????????????????? | | ??????????????????????# #????????????????????? | | ??????????????????????+ #????????????????????? | | ??????????????????????# #????????????????????? | | ??????????????????????# #????????????????????? | | ??????????????????????# #????????????????????? | | ??????????????????????# @!]#????????????????????? | | ??????????????????????# !! #????????????????????? | | ??????????????????????# #????????????????????? | | ??????????????????????# #????????????????????? | | ??????????????????????# #????######??????????? | | ??????????????????????# w #???? #? ????????? | | ?????????????????????## #??? # ?????????? | | ??????????????????????# #??? #??????????? | | ??????????????????????# #???= #??????????? | | ??????????????????????# u #??? ???????????? | | ??????????????????????# #??? ???????????? | | ?????????############## uY#??? =????????????? | | ?????????# # hhu#??? [??????????????? | | ?????????# """ != #[g ###+"###?????????????? | | ?????????# """ != #%[ " #?????????????? | | ?????????# """ ! #%[[ #?????????????? | | ?????????# =#=[ #?????????????? | | ?????????# """ """ %+== #?????????????? | | ?????????# """ """ =#[% #?????????????? | | ?????????# """ """ #!! %[ #?????????????? | | ?????????# # = #?????????????? | | ?????????#? ######## #?????????????? | | ??????????? #??????# #?????????????? | | ??????????? #??????# ##????????????? | | ??????????###+#########??????# ##????????????? | +----------------------------------------------------+ Best States ------------- Heat Dissipation 66 Energy Generation 41 Energy Capacity 470 Matter Stores 300 Matter Capacity 300 Sight Range 16 Robot Scan Range 30 Terrain Scan Density 10 Armor Coverage 300 Weapon Shielding 100 Evasion (%) 52 Targeting Accuracy 16 Target Analysis 6 Armor Integrity Analysis 66 Offensive Hacking 34 Defensive Hacking 25 Item Schematics ----------------- Hcp. Storage Unit | -10/Materials | Hacked Lrg. Storage Unit | -10/Materials | Hacked Cmb. Airjet | -9/Materials | Scanalyzed Adv. Sensor Array | -8/Materials | Hacked Imp. Hacking Suite | -6/Factory | Hacked Cmb. Gravmag System | -6/Factory | Hacked Imp. Armor Integrity Analyzer | -6/Factory | Hacked Combat Drone Bay | -6/Data Miner | Free Lgt. Regenerative Plating | -6/Data Miner | Free Exp. Terrain Scan Processor | -6/Data Miner | Free Cloaking Device | -6/Data Miner | Free Hyp. Railgun | -5/Factory | Hacked Imp. Target Analyzer | -5/Factory | Hacked Exp. Signal Interpreter | -5/Factory | Hacked Exp. Sensor Array | -5/Factory | Hacked Robot Schematics ------------------ S-27 Virus | -6/Data Miner | Free G-50 Soldier | -6/Data Miner | Free X-72 Disruptor | -6/Data Miner | Free P-70 Sage | -6/Data Miner | Free I-36 Angel | -6/Data Miner | Free Fabricated ------------ Cmb. Airjet | x2 | -7/Factory Cmb. Airjet | x2 | -7/Factory Imp. Hacking Suite | x1 | -6/Factory Cmb. Gravmag System | x2 | -6/Factory Cmb. Gravmag System | x2 | -6/Factory Cmb. Gravmag System | x2 | -6/Factory Imp. Armor Integrity Analyzer | x1 | -5/Factory Hyp. Railgun | x2 | -5/Factory Exp. Signal Interpreter | x1 | -5/Factory Alien Tech Used ----------------- None Achievements -------------- None Challenges ------------ None Game ------ Seed DroneGatlingFalx Manual? 0 Play Time 03:33:44 Cumulative 1072.0 hours Start 2020.09.14 @ 12:39:40 End 2020.09.14 @ 17:00:21 Sessions 1 Manual Loads 0 Difficulty Rogue Special Mode None Game No. 345 Rogue 345 Adventurer 0 Explorer 0 Win Type - Total 78 Types 14/9/35/5/1/2/12/0/0 Lore% 94 Gallery% 95 Achievement% 85 Wizard Run 0 Options --------- ASCII 0 Keyboard 0 Movement Numpad Keybinds 0 Fullscreen 1 Font 18/SmallcapsGlow Map View 76x50 Tactical HUD 1 Map Filters NONE Filters NONE Steam 1 RUN: 0581a492-7ff0-4922-b69d-a3669ab0ae79